Cogmind - Beta 14 @@@ ROGUE MODE // 2025.03.13 @ 21:06:51 Player: AzureRose Result: Destroyed by as-70534 with Assembled Rifle Performance ------------- Evolutions (1) 500 Regions Visited (3) 600 Robots Destroyed (13) 65 Value Destroyed (314) 314 Prototype IDs (1) 20 Alien Tech Used (0) 0 Bonus (-128) -128 TOTAL SCORE: 1371 Bonus ------- Friendly Fire -128 Cogmind --------- Core Integrity 0/400 Matter 255/300 Energy 40/100 System Corruption 0% Temperature Cool (0) Movement Walking (120) Location -9/Mines Parts ------- > --- POWER (1) -------- (None) > --- PROPULSION (3) --- Improved Aluminum Leg Carbon-fiber Leg > --- UTILITY (3) ------ Large Storage Unit Signal Interpreter Hardened Light Armor Plating > --- WEAPON (2) ------- Particle Gun > --- INVENTORY (15) --- Large Storage Unit High-capacity Matter Pod (200) Medium Laser Medium Laser Medium Laser Assault Rifle Light Assault Rifle Improved Light Cannon Hammer Peak State ------------ > --- POWER ------------ Ion Engine > --- PROPULSION ------- Carbon-fiber Leg Carbon-fiber Leg Carbon-fiber Leg > --- UTILITY ---------- Large Storage Unit Structural Scanner Signal Interpreter > --- WEAPON ----------- Advanced EMP Blaster Advanced EMP Blaster > --- INVENTORY -------- Light Ion Engine Improved Aluminum Leg Carbon-fiber Leg Wheel Large Storage Unit Visual Processing Unit Hardened Light Armor Plating Medium Laser Medium Laser Medium Laser Particle Gun Assault Rifle Light Assault Rifle Hammer [Rating: 23] Favorites ----------- Power Ion Engine Engine Ion Engine Propulsion Carbon-fiber Leg Leg Carbon-fiber Leg Wheel Wheel Utility Structural Scanner Device Structural Scanner Storage Large Storage Unit Processor Signal Interpreter Protection Hardened Light Armor Plating Weapon Assault Rifle Energy Gun Small Laser Ballistic Gun Assault Rifle Launcher Advanced EMP Blaster Build | -11 -10 -9 -9 ------- Run | Yrd Mat Mat Min Slots Evolved 2 | . . 2 . Power . | . . . . Propulsion 1 | . . 1 . Utility 1 | . . 1 . Weapon . | . . . . Parts Attached 33 | 5 3 16 9 Power 4 | 1 . 2 1 Engine 4 | 1 . 2 1 Core . | . . . . Reactor . | . . . . Propulsion 11 | 1 1 7 2 Treads . | . . . . Leg 9 | . . 7 2 Wheel 2 | 1 1 . . Hover . | . . . . Flight . | . . . . Utility 8 | 1 2 2 3 Device 3 | . 1 1 1 Storage 3 | 1 . 1 1 Processor 1 | . 1 . . Hackware . | . . . . Protection 1 | . . . 1 Artifact . | . . . . Weapon 10 | 2 . 5 3 Energy Gun 5 | 1 . 3 1 Energy Cannon . | . . . . Ballistic Gun 1 | 1 . . . Ballistic Cannon . | . . . . Launcher 4 | . . 2 2 Special Weapon . | . . . . Impact Weapon . | . . . . Slashing Weapon . | . . . . Piercing Weapon . | . . . . Special Melee Weapon . | . . . . Unidentified Prototypes 1 | . . 1 . Parts Lost 12 | . . 3 9 Power 3 | . . 1 2 Propulsion 4 | . . 1 3 Utility 1 | . . . 1 Weapon 4 | . . 1 3 Highest Loss Streak 9 | . . 1 9 To Critical Strikes . | . . . . Average Slot Usage (%) 96 | . 99 96 91 Engine 11 | . 14 10 9 Leg 21 | . . 26 29 Wheel 8 | . 28 3 . Device 11 | . 13 11 9 Storage 11 | . 14 11 11 Processor 8 | . . 11 11 Energy Gun 10 | . 14 10 9 Ballistic Gun 6 | . 14 6 . Launcher 5 | . . 5 10 Peak Build Rating 23 | 5 7 23 20 Average Rating 13 | 3 6 15 18 On Entrance 8 | . 5 7 20 Naked Turns . | . . . . Heaviest Build 38 | 13 14 38 35 Greatest Support 45 | 10 26 45 45 Greatest Overweight (x) 7 | 1 . 2 7 Average Overweight (x) . | . . . . Largest Inventory Capacity 15 | 8 8 15 15 Average Capacity 12 | 6 8 14 15 Most Carried 15 | 6 6 15 15 Average Carried 10 | 3 4 12 14 Final Capacity 15 | 8 8 15 15 Final Carried 15 | 5 6 15 9 Class Distribution -------------------- 100% | Mutant Dominant Class ---------------- Mutant | -10/Materials Mutant | -9/Materials Mutant | -9/Mines Resources | -11 -10 -9 -9 ----------- Run | Yrd Mat Mat Min Matter Collected 563 | 250 50 243 20 Remotely . | . . . . Salvage Created 377 | . 64 231 82 Parts 27 | . 12 11 4 Haulers Intercepted . | . . . . Recyclers Shooed 2 | . . 2 . Parts Field Recycled . | . . . . Retrieved Matter . | . . . . Parts Self-Destructed . | . . . . Prevented . | . . . . Kills | -11 -10 -9 -9 ------- Run | Yrd Mat Mat Min Combat Hostiles Destroyed 9 | . 4 4 1 Guns 8 | . 4 3 1 AOE 1 | . . 1 . Classes Destroyed 7 | . 2 3 2 Worker 1 | . . 1 . Watcher 2 | . 1 1 . Swarmer 4 | . 4 . . Grunt 2 | . . 2 . Sentry 2 | . . 2 . Demolisher 1 | . . . 1 Guerrilla 1 | . . . 1 Best Kill Streak 3 | . 3 3 1 Combat Bots Only 3 | . 3 2 1 Max Kills in Single Turn 1 | . 1 1 1 Gunslinging . | . . . . Exploded 1 | . . 1 . Melee . | . . . . Uniques/NPCs Destroyed . | . . . . Combat | -11 -10 -9 -9 -------- Run | Yrd Mat Mat Min Hostile Shots Fired 119 | . 48 30 41 Missed 37 | . 21 9 7 Damage Taken 1730 | . 216 499 1015 Core 434 | . 33 124 277 Absorbed by Shields . | . . . . Regen/Repaired (Parts) 59 | . . 59 . Core Remaining (%) 93 | 100 86 . . Volleys Fired 45 | . 16 25 4 Largest 2 | . 2 2 2 Hottest 101 | . 60 101 86 Shots Fired 80 | . 32 43 5 Gun 74 | . 32 39 3 Cannon . | . . . . Launcher 6 | . . 4 2 Special . | . . . . Kinetic 31 | . 16 15 . Thermal 43 | . 16 24 3 Explosive . | . . . . Electromagnetic 6 | . . 4 2 Robot Hit Streak 5 | . 2 5 4 Robot Miss Streak 5 | . 4 5 1 Penetration Max . | . . . . Secondary Targets . | . . . . Shots Hit Robots 40 | . 13 23 4 Core Hits 23 | . 6 12 5 Critical Kills . | . . . . Critical Parts Destroyed . | . . . . Critical Strikes 2 | . . 2 . Burn 2 | . . 2 . Melee Attacks . | . . . . Impact . | . . . . Slashing . | . . . . Piercing . | . . . . Sneak Attacks . | . . . . Combat Hostiles . | . . . . Follow-up Attacks . | . . . . Damage Inflicted 872 | . 167 450 255 Guns 484 | . 167 282 35 Cannons . | . . . . Explosions 388 | . . 168 220 Melee . | . . . . Ramming . | . . . . Kinetic 245 | . 146 99 . Thermal 323 | . 21 267 35 Explosive . | . . . . Electromagnetic 304 | . . 84 220 Impact . | . . . . Slashing . | . . . . Piercing . | . . . . Highest Corruption 2 | . 2 . . Average Corruption 2 | . 2 . . Corruption Purged . | . . . . Corruption Blocked . | . . . . Effects 1 | . 1 . . Message Errors 1 | . 1 . . Overload Shots . | . . . . Overflow Damage 11 | . . 11 . Projectiles . | . . . . Explosions 11 | . . 11 . Melee . | . . . . Knockbacks . | . . . . Impact . | . . . . Kinetic . | . . . . Secondary . | . . . . Self-Inflicted Damage 233 | . . 233 . Shots 5 | . . 5 . Rammed . | . . . . Targets Rammed . | . . . . Kicked . | . . . . Crushed . | . . . . Highest Temperature 58 | . 20 58 16 Average Temperature 17 | . 20 17 10 Received Heat Transfer 185 | . 12 153 20 Siege Activations . | . . . . Robots Corrupted . | . . . . Combat Hostiles . | . . . . Parts Fried . | . . . . Impact Corruptions . | . . . . Robots Melted . | . . . . Combat Hostiles . | . . . . Parts Melted . | . . . . Heat Transferred 806 | . 50 682 74 Parts Sabotaged . | . . . . Parts Stolen . | . . . . Parts Stripped . | . . . . Power Chain Reactions 1 | . . 1 . Alert | -11 -10 -9 -9 ------- Run | Yrd Mat Mat Min Peak Influence 257 | . 114 257 42 Initial 48 | . . 48 42 Average 72 | . 38 98 36 Maximum Alert Level 1 | . . 1 . Low Security (%) 99 | 100 100 98 100 Level 1 . | . . 1 . Level 2 . | . . . . Level 3 . | . . . . Level 4 . | . . . . Level 5 . | . . . . High Security . | . . . . Max Security . | . . . . Squads Dispatched 4 | . 2 1 1 Investigation 2 | . 1 1 . Extermination . | . . . . Reinforcement 2 | . 1 . 1 Assault . | . . . . Garrison . | . . . . Intercept . | . . . . Searches Triggered . | . . . . Construction Impeded 1 | . . . 1 Haulers Reinforced . | . . . . Active Scanning Responses . | . . . . Cargo Convoy Interrupts . | . . . . Stealth | -11 -10 -9 -9 --------- Run | Yrd Mat Mat Min Distress Signals 2 | . 2 . . Communications Jammed . | . . . . Distress Signals . | . . . . Times Spotted 41 | . 15 12 14 Peak Tracking Total 16 | . 8 3 16 Tactical Retreats 1 | . . . 1 Traps | -11 -10 -9 -9 ------- Run | Yrd Mat Mat Min Traps Triggered 1 | . 1 . . Indirectly . | . . . . Trap Hack Attempts . | . . . . Triggered . | . . . . Disarmed . | . . . . Reprogrammed . | . . . . Reused . | . . . . Traps Extracted . | . . . . Installed . | . . . . Triggered . | . . . . Machines | -11 -10 -9 -9 ---------- Run | Yrd Mat Mat Min Machines Disabled 3 | . . 3 . Max in Single Turn 3 | . . 3 . Machines Repaired . | . . . . Machines Dismantled . | . . . . Machines Sabotaged . | . . . . Overloaded Fab Kills . | . . . . Hacking | -11 -10 -9 -9 --------- Run | Yrd Mat Mat Min Machines Accessed 6 | . 3 3 . Terminals 3 | . 2 1 . Fabricators . | . . . . Repair Stations 1 | . . 1 . Recycling Units 1 | . 1 . . Scanalyzers 1 | . . 1 . Garrison Access . | . . . . Total Hacks 22 | . 12 10 . Successful 12 | . 5 7 . Failed 10 | . 7 3 . Catastrophic 5 | . 3 2 . Database Lockouts . | . . . . Manual 8 | . 5 3 . Terminals 10 | . 7 3 . Fabricators . | . . . . Repair Stations 3 | . . 3 . Recycling Units 5 | . 5 . . Scanalyzers 4 | . . 4 . Garrison Access . | . . . . Terminal Hacks 4 | . 3 1 . Record 2 | . 1 1 . Branch Access Points 1 | . 1 . . Zone Layout 1 | . 1 . . Fabricator Hacks . | . . . . Repair Station Hacks 2 | . . 2 . Scan Component 1 | . . 1 . Repair 1 | . . 1 . Recycling Unit Hacks 2 | . 2 . . Report Inventory 1 | . 1 . . Retrieve Components 1 | . 1 . . Scanalyzer 4 | . . 4 . Insert Component 2 | . . 2 . Analyze 2 | . . 2 . Garrison Access Hacks . | . . . . Unauthorized Hacks . | . . . . Terminals . | . . . . Fabricators . | . . . . Repair Stations . | . . . . Recycling Units . | . . . . Scanalyzers . | . . . . Garrison Access . | . . . . Data Cores Recovered . | . . . . Used . | . . . . Hacking Detections 6 | . 3 3 . Full Trace Events 5 | . 2 3 . Feedback Events . | . . . . Feedback Blocked . | . . . . Robot Schematics Acquired . | . . . . Robots Built . | . . . . Authchips . | . . . . Time . | . . . . Total Robot Build Rating . | . . . . Part Schematics Acquired 2 | . . 2 . Parts Built . | . . . . Authchips . | . . . . Time . | . . . . Total Part Build Rating . | . . . . Parts Repaired 1 | . . 1 . Time 13 | . . 13 . Parts Recycled . | . . . . Recycled Matter . | . . . . Retrieved Matter . | . . . . Retrieved Components 2 | . 2 . . Parts Scanalyzed 2 | . . 2 . Part Schematics Acquired 2 | . . 2 . Parts Damaged . | . . . . Bothacking | -11 -10 -9 -9 ------------ Run | Yrd Mat Mat Min Used RIF Installer . | . . . . Robots Hacked . | . . . . Non-combat . | . . . . Combat . | . . . . Robot Hacks Applied . | . . . . Relay Couplers Released . | . . . . Fabnet Peak Effective % . | . . . . Robots Rewired . | . . . . Allies Hacked . | . . . . Hacks Repelled . | . . . . Allies | -11 -10 -9 -9 -------- Run | Yrd Mat Mat Min Total Allies . | . . . . Largest Group . | . . . . Highest-Rated Group . | . . . . Highest-Rated Ally . | . . . . Total Orders . | . . . . Ally Attacks . | . . . . Total Damage . | . . . . Kills . | . . . . Allies Corrupted . | . . . . Allies Melted . | . . . . Intel | -11 -10 -9 -9 ------- Run | Yrd Mat Mat Min Robot Analysis Total . | . . . . Derelict Logs Recovered . | . . . . Drone Launches . | . . . . Drone Recoveries . | . . . . Exploration | -11 -10 -9 -9 ------------- Run | Yrd Mat Mat Min Turns Passed 1110 | 55 226 672 157 Spaces Moved 796 | 47 190 456 103 Core 4 | 3 . . 1 Treads . | . . . . Legs 495 | . . 393 102 Wheels 297 | 44 190 63 . Hover . | . . . . Flight . | . . . . Fastest Speed 50 | 50 90 90 120 Average Speed 109 | 86 90 117 125 Slowest Speed 400 | 95 90 120 400 Overloaded Moves . | . . . . Propulsion Burnouts . | . . . . Robots Hopped . | . . . . Cave-ins Triggered . | . . . . Exploration Rate (%) 28 | 3 33 43 36 Regions Visited 3 Branch Regions 1 Pre-discovered Areas . | . . . . Known Exits Taken 2 | . 1 1 . Unknown Exits Taken 1 | 1 . . . Scrap Searched 1 | . . . 1 Spaces Dug . | . . . . Terrain Destroyed 36 | . . 36 . Melee . | . . . . Projectile . | . . . . AOE 36 | . . 36 . Terrain Rammed . | . . . . Walls Destroyed . | . . . . Machines Disabled . | . . . . Actions | -11 -10 -9 -9 --------- Run | Yrd Mat Mat Min Total 947 | 60 212 550 125 Wait 36 | . 1 30 5 Move 793 | 46 189 455 103 Hop . | . . . . Pick Up 33 | 9 3 19 2 Fast Attach 1 | 1 . . . Attach 18 | 4 2 6 6 Detach . | . . . . Swap 14 | . 1 10 3 Drop 7 | . . 5 2 Fire 45 | . 16 25 4 Melee . | . . . . Ram . | . . . . Kick . | . . . . Crush . | . . . . Escape Stasis . | . . . . Rewire . | . . . . Trap . | . . . . Miscellaneous . | . . . . Route ------- -11/Scrapyard -10/Materials (discovered 2 exits: *Mat / Min) -9/Materials (discovered 2 exits: *Mat / *Min) -9/Mines (discovered 1 exit: *Mat) History --------- Turn | Location | Event 16 | -11/Scrapyard | Discovered new exit (range 15) 56 | -11/Scrapyard | Entered Materials 94 | -10/Materials | Identified exit to Mines 159 | -10/Materials | Discovered new exit (range 6) 282 | -10/Materials | Identified exit to Materials 282 | -10/Materials | Entered another Materials area 282 | -9/Materials | Evolved 2 slots: Propulsion x1, Utility x1 303 | -9/Materials | Build established: Mutant 315 | -9/Materials | Repaired Ion Engine 615 | -9/Materials | Discovered new exit (range 13) 633 | -9/Materials | Identified exit to Materials 936 | -9/Materials | Discovered new exit (range 16) 953 | -9/Materials | Identified exit to Mines 954 | -9/Materials | Entered Mines 959 | -9/Mines | Met a Derelict bent on vengeance 1041 | -9/Mines | Discovered exit to Materials (range 16) 1072 | -9/Mines | Assembled infested the area 1077 | -9/Mines | Assisted by a Guerilla fighting off Assembled 1098 | -9/Mines | Core integrity fell below 50% 1102 | -9/Mines | Core integrity fell below 20% 1111 | -9/Mines | Destroyed by as-70534 with Assembled Rifle Last Messages --------------- 01100_ as-80459 destroyed. 01100_ G-47 Trooper destroyed. 01101_ T-07 Excavator is excavating. 01101_ as-56363 destroyed. 01102_ as-18692 destroyed. 01102_ as-97332 destroyed. 01103_ The unstable cave ceiling collapses. 01103_ D-53 Grenadier misfires. 01104_ The unstable cave ceiling collapses. 01105_ Backup Power I destroyed. 01105_ T-07 Excavator is excavating. 01106_ The unstable cave ceiling collapses. 01106_ D-53 Grenadier destroyed. 01108_ The unstable cave ceiling collapses. 01109_ as-98697 destroyed. 01109_ T-07 Excavator is excavating. 01110_ The unstable cave ceiling collapses. 01110_ D-53 Grenadier IFF system glitched. 01110_ G-47 Trooper destroyed. 01111_ The unstable cave ceiling collapses. Map ----- +----------------------------------------------------+ | ?????### ??????????????????????????????? | | ?????### ##??????????????????????????????? | | ?????## ###??????????????????????????????? | | ?????## ###??????????????????????????????? | | ####### ###??????????????????????????????? | | ####### ##??????????????????????????????? | | ## ## ##??????????????????????????????? | | ###??????????????????????????????? | | ####?????????????????????????????? | | ###?????????????????????????????? | | ## ##???????### ??????????????????? | | # #### ##??????#### ??????### ????????? | | ######## ##??????## ????# ####????????? | | ####### ##??????## ##???? ????????? | | ???#### ###??????## ##??? a##?????????? | | ###### #########?## ##??? % ##?????????? | | ##### ### ## ## ##### ###?????????? | | # # # ## ###??????????? | | # % # aa##???????????? | | # ##### ### ###??????????? | | # ##### ### = = ## ###??????????? | | # ???### ### *%%d % ##??????????? | | ?????##### ### ##??????????? | | ??????#### ###### ##?????????? | | ????????# < #### # #?????????? | | ????????# ##?# % @a t #??????? | | ????????## ## ### #???????? | | ????????### ## # # ####??????????? | | ?????????## ??#### # #?????????????? | | ??????????# ##?##### ##?????????????? | | ??????????## ###?????########??????????????? | | ??????????#######???????????????????????????? | | ???????????#####????????????????????????????? | | | | | | | | | | | | | | | | | | | | | | | | | | | | | | | | | | | +----------------------------------------------------+ Best States ------------- Heat Dissipation 28 Energy Generation 10 Energy Capacity 250 Matter Stores 300 Matter Capacity 300 Sight Range 16 Terrain Scan Density 10 Evasion (%) 55 Item Schematics ----------------- Adv. EMP Blaster | -9/Materials | Scanalyzed Carbon-fiber Leg | -9/Materials | Scanalyzed Robot Schematics ------------------ None Fabricated ------------ Nothing Alien Tech Used ----------------- None Achievements -------------- None Challenges ------------ None Game ------ Seed EncryptedBehemothMonowheel Manual? 0 Play Time 00:25:32 Cumulative 4.9 hours Start 2025.03.13 @ 20:44:34 End 2025.03.13 @ 21:06:51 Sessions 1 Manual Loads 0 Difficulty Rogue Special Mode None Game No. 7 Rogue 6 Adventurer 1 Explorer 0 Win Type - Total 0 Types 0/0/0/0/0/0/0/0/0 Lore% 1 Gallery% 8 Achievement% 8 Wizard Run 0 Options --------- Layout 1 ASCII 0 Keyboard 0 Movement Mouse Keybinds 0 Fullscreen 1 Font 24/Smallcaps Map View 50x35 Zoom Use 0% Tactical HUD 1 Map Filters NONE Filters NONE Steam 1 RUN: 1fd530cf-6f60-47e5-8a00-d34d8c1c11d2